bitfinex-derivatives/quotes_BTCF0:USTF0_20250910
["timestamp","ask_amount","ask_price","bid_price","bid_amount"]
[1757465836086,0.98871042,111090.0,111080.0,0.13483199]
[1757465838789,0.05390843,111090.0,111080.0,0.13483199]
[1757465838990,0.98871042,111090.0,111080.0,0.13483199]
[1757465839983,0.98871042,111090.0,111080.0,0.14802199]
[1757465840377,0.98871042,111090.0,111080.0,0.03562]
[1757465840583,0.98871042,111090.0,111080.0,0.14802199]
[1757465842094,0.04089843,111090.0,111080.0,0.51042398]
[1757465842293,0.02178,111090.0,111080.0,0.51042398]
[1757465842692,0.95765199,111100.0,111090.0,0.03562]
[1757465842895,0.97681893,111100.0,111090.0,0.14802199]
[1757465844299,0.15441893,111100.0,111090.0,0.14802199]
[1757465844600,0.77309893,111100.0,111090.0,0.14802199]
[1757465844898,0.15441893,111100.0,111090.0,0.14802199]
[1757465845198,0.97677893,111100.0,111090.0,0.14802199]
[1757465845499,0.87738694,111100.0,111090.0,0.14802199]
[1757465845697,0.98978893,111100.0,111090.0,0.14802199]
[1757465846698,1.10219092,111100.0,111090.0,0.02243]
[1757465846889,1.10219092,111100.0,111090.0,0.13483199]
[1757465847594,0.98978893,111100.0,111090.0,0.13483199]
[1757465848496,0.98978893,111100.0,111090.0,0.02243]
[1757465848694,1.10219092,111100.0,111090.0,0.02243]
[1757465848997,1.10219092,111100.0,111090.0,0.13483199]
[1757465849798,1.10219092,111100.0,111090.0,0.02243]
[1757465849999,1.10219092,111100.0,111090.0,0.13483199]
[1757465854299,1.10219092,111100.0,111090.0,0.02243]
[1757465854498,0.03586,111090.0,111080.0,0.0001]
[1757465854700,0.03586,111080.0,111070.0,0.36291369]
[1757465855002,1.10211092,111080.0,111070.0,0.34038369]
[1757465855904,0.87730694,111080.0,111070.0,0.34038369]
[1757465856102,1.10211092,111080.0,111070.0,0.34038369]
[1757465857606,1.10211092,111080.0,111070.0,0.20611568]
[1757465857803,1.10211092,111080.0,111070.0,0.09371369]
[1757465859805,1.10211092,111080.0,111070.0,0.20611568]
[1757465861516,1.10211092,111080.0,111070.0,0.09371369]
[1757465864115,1.10211092,111080.0,111070.0,0.07128369]
[1757465864319,1.08294398,111080.0,111070.0,0.07128369]
[1757465864618,0.85814,111080.0,111070.0,0.07128369]
[1757465864818,1.08294398,111080.0,111070.0,0.09242369]
[1757465865008,1.10230445,111080.0,111070.0,0.09242369]
[1757465865209,1.08294398,111080.0,111070.0,0.07128369]
[1757465865408,1.10230289,111080.0,111070.0,0.07128369]
[1757465866321,1.10234289,111080.0,111070.0,0.09242369]
[1757465867120,1.10234289,111080.0,111070.0,0.07128369]
[1757465869022,1.10234289,111080.0,111070.0,0.18368568]
[1757465870225,1.10234289,111080.0,111070.0,0.07128369]
[1757465870924,1.10234289,111080.0,111070.0,0.18368568]
[1757465871219,1.10234289,111080.0,111070.0,0.20482568]
[1757465871423,1.08298398,111080.0,111070.0,0.20482568]
[1757465871826,1.10234232,111080.0,111070.0,0.20482568]
[1757465872326,1.10234232,111080.0,111070.0,0.07128369]
[1757465872626,1.10234232,111080.0,111070.0,0.20482568]
[1757465873628,1.10234232,111080.0,111070.0,0.18368568]
[1757465875234,1.10234232,111080.0,111070.0,0.20482568]
[1757465875828,1.10234232,111080.0,111070.0,0.18368568]
[1757465876026,1.10234232,111080.0,111070.0,0.20482568]
[1757465877632,1.10234232,111080.0,111070.0,0.09242369]
[1757465877930,1.10234232,111080.0,111070.0,0.20482568]
[1757465878626,1.10234232,111080.0,111070.0,0.18368568]
[1757465879030,1.10234232,111080.0,111070.0,0.20482568]
[1757465880134,0.28002232,111080.0,111070.0,0.20482568]
[1757465880428,1.29314431,111080.0,111070.0,0.0001348]
[1757465881524,0.03507,111070.0,111060.0,0.0001]
[1757465881729,0.03507,111060.0,111050.0,0.0001]
[1757465881925,0.03497,111050.0,111040.0,0.03914191]
[1757465882131,0.14737199,111050.0,111040.0,0.03914191]
[1757465884140,0.14737199,111050.0,111040.0,0.01800191]
[1757465884334,0.14737199,111050.0,111040.0,0.03914191]
[1757465885328,0.96969199,111050.0,111040.0,0.03914191]
[1757465885838,0.96969199,111050.0,111040.0,0.10948086]
[1757465886430,0.14737199,111050.0,111040.0,0.10948086]
[1757465886737,0.39157,111050.0,111040.0,0.10948086]
[1757465887030,0.84837398,111050.0,111020.0,0.0316837]
[1757465887230,0.14747199,111030.0,111020.0,0.16522569]
[1757465887432,0.96983199,111030.0,111020.0,0.16522569]
[1757465888236,0.85743,111030.0,111020.0,0.15207569]
[1757465888438,0.96983199,111030.0,111020.0,0.15207569]
[1757465888630,0.03507,111030.0,111020.0,0.15207569]
[1757465888935,0.96983199,111030.0,111020.0,0.15207569]
[1757465890341,0.96983199,111030.0,111020.0,0.22342866]
[1757465890731,0.14747199,111030.0,111020.0,0.22342866]
[1757465890931,0.44775199,111030.0,111020.0,0.22342866]
[1757465892738,0.44775199,111030.0,111020.0,0.11102667]
[1757465892937,0.44775199,111030.0,111020.0,0.22342866]
[1757465894341,0.41037077,111030.0,111020.0,0.09310297]
[1757465895929,0.11009077,111030.0,111020.0,0.16812374]
[1757465896240,0.03507,111030.0,111020.0,0.16812374]
[1757465896537,0.11009077,111030.0,111020.0,0.10685297]
[1757465896938,0.11009077,111030.0,111020.0,0.18187374]
[1757465897239,0.11009077,111030.0,111020.0,0.0355]
[1757465898241,0.11009077,111030.0,111020.0,0.02175]
[1757465905547,0.03507,111030.0,111020.0,0.02175]
[1757465905847,0.11009077,111030.0,111020.0,0.02175]
[1757465908449,0.11009077,111030.0,111020.0,0.09677077]
[1757465908945,0.11009077,111030.0,111020.0,0.02175]
[1757465912548,0.03665,111020.0,111010.0,0.23971085]
[1757465912842,0.03665,111020.0,111010.0,0.23961085]
[1757465913236,0.03665,111020.0,111010.0,0.1910757]
[1757465913434,0.02291,111020.0,111010.0,0.1910757]
[1757465913639,0.0230448,111040.0,111030.0,0.0355]
[1757465913842,0.04234926,111040.0,111030.0,0.11052077]
[1757465914044,0.05608926,111040.0,111030.0,0.11052077]
[1757465914242,0.05608926,111040.0,111030.0,0.09677077]
[1757465914750,0.05608926,111040.0,111030.0,0.02175]
[1757465914956,0.13111003,111040.0,111030.0,0.09677077]
[1757465916747,0.11180557,111040.0,111030.0,0.17777544]
[1757465917245,0.11180557,111040.0,111030.0,0.1291877]
[1757465917854,0.13094961,111040.0,111030.0,0.09677077]
[1757465920055,0.05592884,111040.0,111030.0,0.09677077]
[1757465920247,0.04218884,111040.0,111030.0,0.42719908]
[1757465920447,0.0230448,111040.0,111030.0,0.42719908]
[1757465924473,0.11156557,111040.0,111030.0,0.33842831]
[1757465924675,0.11156557,111040.0,111030.0,0.41344908]
[1757465925176,0.09806557,111040.0,111030.0,0.42710908]
[1757465926273,0.0230448,111040.0,111030.0,0.42710908]
[1757465927073,0.0365448,111040.0,111030.0,0.35208831]
[1757465927277,0.0365448,111040.0,111030.0,0.42710908]
[1757465927972,0.0557054,111040.0,111030.0,0.42710908]
[1757465928474,0.0365448,111040.0,111030.0,0.42710908]
[1757465929074,0.05582842,111040.0,111030.0,0.42710908]
[1757465929272,0.0365448,111040.0,111030.0,0.42710908]
[1757465932077,0.0230448,111040.0,111030.0,0.42710908]
[1757465932882,0.0365448,111040.0,111030.0,0.42710908]
[1757465933180,0.0365448,111040.0,111030.0,0.41091763]
[1757465933678,0.0365448,111040.0,111030.0,0.33589686]
[1757465933982,0.0365448,111040.0,111030.0,0.41091763]
[1757465934981,0.0230448,111040.0,111030.0,0.41091763]
[1757465938889,0.04218575,111040.0,111030.0,0.37852134]
[1757465939076,0.04218575,111040.0,111030.0,0.30350057]
[1757465939276,0.05568575,111040.0,111030.0,0.37852134]
[1757465939785,0.04218575,111040.0,111030.0,0.37852134]
[1757465941385,0.05568575,111040.0,111030.0,0.12852134]
[1757465942085,0.0365448,111040.0,111030.0,0.16092608]
[1757465942785,0.11156557,111040.0,111030.0,0.16092608]
[1757465943189,0.11156557,111040.0,111030.0,0.17710908]
[1757465944988,0.11156557,111040.0,111030.0,0.08842831]
[1757465945192,0.11156557,111040.0,111030.0,0.17710908]
[1757465945685,0.0230448,111040.0,111030.0,0.17710908]
[1757465950186,0.0230448,111040.0,111030.0,0.12852134]
[1757465952396,0.0230448,111040.0,111030.0,0.14260245]
[1757465953293,0.0230448,111040.0,111030.0,0.20726452]
[1757465953493,0.0230448,111040.0,111030.0,0.19318341]
[1757465953694,0.0230448,111040.0,111030.0,0.12852134]
[1757465954399,0.13553392,111040.0,111030.0,0.16598969]
[1757465954694,0.13553392,111040.0,111030.0,0.05350057]
[1757465954893,0.14938392,111040.0,111030.0,0.16598969]
[1757465955598,0.13553392,111040.0,111030.0,0.16598969]
[1757465957799,0.0230448,111040.0,111030.0,0.16598969]
[1757465957998,0.13553392,111040.0,111030.0,0.16598969]
[1757465960600,0.13553392,111040.0,111030.0,0.05350057]
[1757465960801,0.13553392,111040.0,111030.0,0.16598969]
[1757465962100,0.0230448,111040.0,111030.0,0.16598969]
[1757465962399,0.13553392,111040.0,111030.0,0.16598969]
[1757465962797,0.0230448,111040.0,111030.0,0.16598969]
[1757465962998,0.13553392,111040.0,111030.0,0.16598969]
[1757465964202,0.0230448,111040.0,111030.0,0.16598969]
[1757465964405,0.13553392,111040.0,111030.0,0.16598969]
[1757465964906,0.15489299,111040.0,111030.0,0.21464967]
[1757465965203,0.0001348,111040.0,111030.0,0.59314088]
[1757465965502,0.0001348,111040.0,111030.0,0.68320148]
[1757465965907,0.01374,111070.0,111060.0,0.01284]
[1757465966100,0.61104912,111070.0,111060.0,0.14743912]
[1757465966401,0.63040437,111070.0,111060.0,0.14743912]
[1757465966898,0.97644437,111070.0,111060.0,0.14743912]
[1757465967099,0.15428437,111070.0,111060.0,0.14743912]
[1757465967403,0.97640437,111070.0,111060.0,0.14743912]
[1757465967603,0.99025437,111070.0,111060.0,0.14743912]
[1757465968905,0.87776525,111070.0,111060.0,0.14743912]
[1757465969107,0.99025437,111070.0,111060.0,0.14743912]
[1757465969302,0.99025437,111070.0,111060.0,0.02211]
[1757465969506,0.87776525,111070.0,111060.0,0.13459912]
[1757465969702,0.99025437,111070.0,111060.0,0.02211]
[1757465971607,0.99025437,111070.0,111060.0,0.13459912]
[1757465971808,0.16813437,111070.0,111060.0,0.13459912]
[1757465972003,0.99017437,111070.0,111060.0,0.13459912]
[1757465973306,0.99017437,111070.0,111060.0,0.14379808]
[1757465975204,0.99017437,111070.0,111060.0,0.02211]
[1757465975504,0.99017437,111070.0,111060.0,0.13459912]
[1757465976098,0.99017437,111070.0,111060.0,0.02211]
[1757465976505,0.99013437,111070.0,111060.0,0.02211]
[1757465978805,0.99013437,111070.0,111060.0,0.03495]
[1757465979609,0.97624437,111070.0,111060.0,0.14743912]
[1757465980711,0.15428437,111070.0,111060.0,0.14743912]
[1757465981008,0.97624437,111070.0,111060.0,0.14743912]
[1757465981805,0.97620437,111070.0,111060.0,0.14743912]
[1757465982812,0.15428437,111070.0,111060.0,0.14743912]
[1757465983014,0.97620437,111070.0,111060.0,0.14743912]
[1757465983609,0.15428437,111070.0,111060.0,0.14743912]
[1757465983811,0.86367525,111070.0,111060.0,0.14743912]
[1757465984012,0.97616437,111070.0,111060.0,0.14743912]
[1757465985310,0.15428437,111070.0,111060.0,0.14743912]
[1757465985520,0.01935525,111070.0,111060.0,0.27838664]
[1757465986014,0.95543912,111080.0,111070.0,0.03481]
[1757465986211,0.97475682,111080.0,111070.0,0.14729912]
[1757465987014,0.97471682,111080.0,111070.0,0.14729912]
[1757465987320,0.97471682,111080.0,111070.0,0.21928975]
[1757465987918,0.97471682,111080.0,111070.0,0.14729912]
[1757465988720,0.02107,111080.0,111070.0,0.14729912]
[1757465988923,0.54083,111080.0,111070.0,0.39729912]
[1757465989116,0.56014351,111080.0,111070.0,0.39729912]
[1757465989516,0.02107,111080.0,111070.0,0.39729912]
[1757465990914,0.12633912,111100.0,111080.0,0.01278]
[1757465991117,0.83231,111090.0,111080.0,0.14739912]
[1757465991318,0.83231,111090.0,111080.0,0.14729912]
[1757465992324,0.96412022,111090.0,111080.0,0.25978824]
[1757465993128,0.96412022,111090.0,111080.0,0.14729912]
[1757465995718,0.15288022,111090.0,111080.0,0.14729912]
[1757465995917,0.97456022,111090.0,111080.0,0.14729912]
[1757465998028,0.97456022,111090.0,111080.0,0.25978824]
[1757465998518,0.97456022,111090.0,111080.0,0.14729912]
[1757465999230,0.97456022,111090.0,111080.0,0.03481]
[1757465999430,0.97456022,111090.0,111080.0,0.14729912]
[1757465999627,0.97456022,111090.0,111080.0,0.03481]
[1757465999930,0.97456022,111090.0,111080.0,0.14729912]
[1757466000429,0.97448022,111090.0,111080.0,0.14729912]
[1757466000632,0.95515912,111090.0,111080.0,0.14729912]
[1757466000932,0.84267,111100.0,111090.0,0.03481]
[1757466001133,0.15288058,111100.0,111090.0,0.14729912]
[1757466001333,0.95515912,111100.0,111090.0,0.14729912]
[1757466003634,0.84267,111100.0,111090.0,0.14729912]
[1757466003834,0.95515912,111100.0,111090.0,0.14729912]
[1757466005433,0.95515912,111100.0,111090.0,0.03481]
[1757466005633,0.97447631,111100.0,111090.0,0.14729912]
[1757466005834,0.86198719,111100.0,111090.0,0.14729912]
[1757466006037,0.97447631,111100.0,111090.0,0.14729912]
[1757466006835,0.04038719,111100.0,111090.0,0.14729912]
[1757466007026,0.02107,111100.0,111090.0,0.39729912]
[1757466007736,0.02107,111100.0,111090.0,0.40642996]
[1757466008038,0.95503912,111110.0,111100.0,0.03481]
[1757466008336,0.97435947,111110.0,111100.0,0.14729912]
[1757466008532,0.04039035,111110.0,111100.0,0.25978824]
[1757466008733,0.02107,111110.0,111100.0,0.25978824]
[1757466009139,0.12523912,111130.0,111100.0,0.25978824]
[1757466009341,0.95499912,111120.0,111110.0,0.03481]
[1757466009642,0.86182865,111120.0,111110.0,0.03481]
[1757466009840,0.04038865,111120.0,111110.0,0.03481]
[1757466010134,0.02107,111130.0,111120.0,0.01278]
[1757466010334,0.04038521,111130.0,111120.0,0.03481]
[1757466010535,0.02107,111130.0,111120.0,0.25978824]
[1757466010736,0.04038981,111130.0,111120.0,0.25978824]
[1757466011140,0.02107,111130.0,111120.0,0.25978824]
[1757466011843,0.56442912,111140.0,111130.0,0.03588]
[1757466012038,0.58374563,111140.0,111130.0,0.14836912]
[1757466013244,0.56442912,111140.0,111130.0,0.15735104]
[1757466013538,0.13446912,111140.0,111130.0,0.15735104]
[1757466014836,0.95578912,111140.0,111130.0,0.22157334]
[1757466015443,1.08202824,111140.0,111130.0,0.22157334]
[1757466015645,0.14821912,111140.0,111130.0,0.22157334]
[1757466015845,0.96949912,111140.0,111130.0,0.22157334]
[1757466016435,0.03573,111130.0,111120.0,0.02311]
[1757466016640,0.1106058,111130.0,111120.0,0.02301]
[1757466017649,0.03573,111130.0,111120.0,0.02301]
[1757466017848,0.1106058,111130.0,111120.0,0.02301]
[1757466022153,0.03573,111130.0,111120.0,0.02301]
[1757466022343,0.1106058,111130.0,111120.0,0.02301]
[1757466022544,0.03573,111130.0,111120.0,0.02301]
[1757466022741,0.1106058,111130.0,111120.0,0.02301]
[1757466022942,0.6072458,111130.0,111120.0,0.1107558]
[1757466024144,0.53237,111130.0,111120.0,0.03588]
[1757466024344,0.6072458,111130.0,111120.0,0.1107558]
[1757466025052,0.53237,111130.0,111120.0,0.1107558]
[1757466028052,0.02198,111130.0,111120.0,0.1107558]
[1757466029762,0.03573,111130.0,111120.0,0.02301]
[1757466029951,0.03573,111130.0,111120.0,0.1107558]
[1757466031054,0.02198,111130.0,111120.0,0.1107558]
[1757466031761,0.02198,111130.0,111120.0,0.03588]
[1757466032058,0.02198,111130.0,111120.0,0.1107558]
[1757466033359,0.0414844,111130.0,111120.0,0.1107558]
[1757466034061,0.0195044,111130.0,111120.0,0.4356316]
[1757466034462,0.0414844,111130.0,111120.0,0.4356316]
[1757466035462,0.0414844,111130.0,111120.0,0.7047316]
[1757466035664,0.0414844,111130.0,111120.0,0.55498]
[1757466035861,0.0414844,111130.0,111120.0,0.7047316]
[1757466038560,0.0552344,111130.0,111120.0,0.55498]
[1757466038760,0.0552344,111130.0,111120.0,0.6298558]
[1757466038961,0.0195044,111130.0,111120.0,0.7047316]
[1757466039157,0.0414844,111130.0,111120.0,0.7047316]
[1757466039362,0.0414844,111130.0,111120.0,0.4547316]
[1757466039664,0.0195044,111130.0,111120.0,0.4547316]
[1757466039873,0.0414844,111130.0,111120.0,0.4547316]
[1757466040967,0.0195044,111130.0,111120.0,0.5447195]
[1757466041366,0.0426544,111130.0,111120.0,0.5447195]
[1757466042267,0.0195044,111130.0,111120.0,0.91811673]
[1757466042469,0.0195044,111130.0,111120.0,0.64901673]
[1757466042669,0.0195044,111130.0,111120.0,0.57414093]
[1757466043165,1.87691184,111160.0,111130.0,0.1038277]
[1757466043372,1.919626,111160.0,111150.0,0.1107158]
[1757466043762,1.9945018,111160.0,111150.0,0.1107158]
[1757466043963,1.94633996,111160.0,111150.0,0.1107158]
[1757466044174,1.87146416,111160.0,111150.0,0.03584]
[1757466044463,1.94633996,111160.0,111150.0,0.1107158]
[1757466045064,1.87146416,111160.0,111150.0,0.1107158]
[1757466045264,1.94633996,111160.0,111150.0,0.1107158]
[1757466046468,1.94633996,111160.0,111150.0,0.03584]
[1757466046666,1.94633996,111160.0,111150.0,0.02199]
[1757466048370,2.76721996,111160.0,111150.0,0.02199]
[1757466048669,2.69234416,111160.0,111150.0,0.02199]
[1757466048870,2.76721996,111160.0,111150.0,0.02199]
[1757466052874,2.76721996,111160.0,111150.0,0.0968658]
[1757466053474,2.69234416,111160.0,111150.0,0.0968658]
[1757466053676,2.76721996,111160.0,111150.0,0.0968658]
[1757466054778,1.94633996,111160.0,111150.0,0.0968658]
[1757466054971,2.76713996,111160.0,111150.0,0.0968658]
[1757466055170,2.69226416,111160.0,111150.0,0.0968658]
[1757466057876,0.95113996,111160.0,111150.0,0.0968658]
[1757466058673,0.86347416,111160.0,111150.0,0.1107158]
[1757466059480,0.86347416,111160.0,111150.0,0.11964109]
[1757466060083,0.95176996,111160.0,111150.0,0.1107158]
[1757466060380,0.87689416,111160.0,111150.0,0.02199]
[1757466060775,0.95176996,111160.0,111150.0,0.02199]
[1757466061582,0.95176996,111160.0,111150.0,0.0968658]
[1757466062981,0.95176996,111160.0,111150.0,0.02199]
[1757466063184,0.95176996,111160.0,111150.0,0.0968658]
[1757466064086,0.87689416,111160.0,111150.0,0.0968658]
[1757466068582,0.05613416,111160.0,111150.0,0.1107158]
[1757466068783,0.04271416,111160.0,111150.0,0.12915145]
[1757466069479,0.82068,111170.0,111160.0,0.01385]
[1757466069785,0.86339838,111170.0,111160.0,0.1855916]
[1757466070289,0.04271838,111170.0,111160.0,0.1855916]
[1757466071376,0.02315,111170.0,111160.0,0.48411303]
[1757466073389,0.04272256,111170.0,111160.0,0.4355916]
[1757466073890,0.05629256,111170.0,111160.0,0.27199]
[1757466074194,0.05629256,111170.0,111160.0,0.3468658]
[1757466074488,0.05629256,111170.0,111160.0,0.3595358]
[1757466074688,0.03601,111160.0,111150.0,0.04073565]
[1757466074889,0.13045836,111160.0,111150.0,0.04063565]
[1757466075087,0.20533416,111160.0,111150.0,0.0222]
[1757466075587,0.13045836,111160.0,111150.0,0.0222]
[1757466076390,0.28015462,111160.0,111150.0,0.0222]
[1757466077391,0.16786859,111160.0,111150.0,0.13448603]
[1757466077787,0.16786859,111160.0,111150.0,0.0222]
[1757466077988,0.16786859,111160.0,111150.0,0.13448603]
[1757466080394,0.14829603,111160.0,111150.0,0.13448603]
[1757466080796,0.16806771,111160.0,111150.0,0.13448603]
[1757466083399,0.14829603,111160.0,111150.0,0.18302933]
[1757466090196,0.14829603,111160.0,111150.0,0.0707433]
[1757466090402,0.14829603,111160.0,111150.0,0.18302933]
[1757466093302,0.16813283,111160.0,111150.0,0.13448603]
[1757466097218,0.0558468,111160.0,111150.0,0.14715603]
[1757466097518,0.03601,111160.0,111150.0,0.14715603]
[1757466098616,0.05584797,111160.0,111150.0,0.14715603]
[1757466099114,0.168134,111160.0,111150.0,0.14715603]
[1757466100017,0.16813366,111160.0,111150.0,0.14715603]
[1757466101614,0.16813366,111160.0,111150.0,0.13448603]
[1757466104214,0.16813366,111160.0,111150.0,0.18303599]
[1757466106821,0.16813366,111160.0,111150.0,0.07074996]
[1757466107118,0.16813366,111160.0,111150.0,0.11228603]
[1757466107321,0.03541,111150.0,111140.0,0.07199476]
[1757466107516,0.16753366,111150.0,111140.0,0.04868476]
[1757466107821,0.16753366,111150.0,111140.0,0.0001348]
[1757466107822,0.98801366,111150.0,111140.0,0.0001348]
[1757466109126,1.35029969,111150.0,111140.0,0.0001348]
[1757466109311,1.35947044,111150.0,111140.0,0.0001348]
[1757466116128,1.33963281,111150.0,111140.0,0.0001348]
[1757466116327,1.36033935,111150.0,111140.0,0.0001348]
[1757466116936,0.03541,111140.0,111130.0,0.0001]
[1757466117224,0.03541,111130.0,111120.0,0.0001]
[1757466117427,0.03541,111120.0,111110.0,0.02331]
[1757466117623,0.14769603,111120.0,111110.0,0.13549603]
[1757466118021,0.16862187,111120.0,111110.0,0.13549603]
[1757466118325,0.25998206,111120.0,111110.0,0.02321]
[1757466118524,0.25998206,111120.0,111100.0,0.14399183]
[1757466118716,0.96821603,111110.0,111100.0,0.15381183]
[1757466118920,0.96821603,111110.0,111100.0,0.13549603]
[1757466120428,0.96825603,111110.0,111100.0,0.13549603]
[1757466122029,0.96825603,111110.0,111100.0,0.02321]
[1757466122531,0.96825603,111110.0,111100.0,0.13549603]
[1757466124243,0.03541,111100.0,111090.0,0.13559603]
[1757466124540,0.03541,111090.0,111080.0,0.43652389]
[1757466124835,0.03541,111090.0,111080.0,0.27960992]
[1757466125137,0.03541,111090.0,111080.0,0.05503786]
[1757466125329,0.03541,111090.0,111080.0,0.27960992]
[1757466128538,0.03541,111090.0,111080.0,0.28872961]
[1757466132847,0.14769603,111090.0,111080.0,0.28872961]
[1757466133446,0.03541,111090.0,111080.0,0.28872961]
[1757466133642,0.14769603,111090.0,111080.0,0.28872961]
[1757466134852,0.14969603,111090.0,111080.0,0.28872961]
[1757466135744,0.14969603,111090.0,111070.0,0.35365238]
[1757466135952,0.14808603,111080.0,111070.0,0.48711841]
[1757466136247,0.14808603,111080.0,111070.0,0.48701841]
[1757466136449,0.11074485,111080.0,111070.0,0.43628723]
[1757466136651,0.11074485,111080.0,111070.0,0.09224238]
[1757466137145,0.68522485,111080.0,111070.0,0.09224238]
[1757466137350,0.68522485,111080.0,111070.0,0.16718723]
[1757466137649,0.78316,111080.0,111070.0,0.16718723]
[1757466137836,0.78316,111080.0,111070.0,0.18079723]
[1757466138240,0.78516,111080.0,111070.0,0.18079723]
[1757466141248,0.02421,111080.0,111070.0,0.18079723]
[1757466142446,0.02421,111080.0,111070.0,0.10585238]
[1757466142646,0.02421,111080.0,111070.0,0.18079723]
[1757466143549,0.02221,111080.0,111070.0,0.18079723]
[1757466143742,0.02421,111080.0,111070.0,0.18079723]
[1757466146249,0.04540916,111080.0,111070.0,0.18079723]
[1757466147749,0.04540916,111080.0,111060.0,0.38449017]
[1757466147750,0.03105,111070.0,111060.0,0.0001]
[1757466147942,0.03523,111060.0,111050.0,0.0001]
[1757466148145,0.0358,111040.0,111030.0,0.02118]
[1757466148344,0.13195563,111040.0,111030.0,0.02118]
[1757466149646,0.04342078,111040.0,111030.0,0.35973485]
[1757466150341,0.02221,111040.0,111030.0,0.35973485]
[1757466150544,0.02421,111040.0,111030.0,0.35973485]
[1757466159256,0.02421,111040.0,111030.0,0.10973485]
[1757466160446,0.02421,111040.0,111030.0,0.03479]
[1757466160648,0.02421,111040.0,111030.0,0.10973485]
[1757466163458,0.04526275,111040.0,111030.0,0.10973485]
[1757466164355,0.04505844,111040.0,111030.0,0.10973485]
[1757466170562,0.02284844,111040.0,111030.0,0.10973485]
[1757466170764,0.04545844,111040.0,111030.0,0.10973485]
[1757466173063,0.04545844,111040.0,111030.0,0.03479]
[1757466173265,0.04545844,111040.0,111030.0,0.10973485]
[1757466173562,0.002,111040.0,111030.0,0.10973485]
[1757466174064,0.02461,111040.0,111030.0,0.10973485]
[1757466174259,0.002,111040.0,111030.0,0.19979575]
[1757466174461,0.002,111040.0,111030.0,1.6146806]
[1757466176264,0.002,111040.0,111030.0,1.67941388]
[1757466180473,0.0001348,111050.0,111040.0,0.1242028]
[1757466180672,0.4770164,111090.0,111080.0,0.02104]
[1757466180873,0.44961762,111090.0,111080.0,0.02104]
[1757466181067,0.05707277,111090.0,111080.0,0.03415]
[1757466181373,0.13201762,111090.0,111080.0,0.03415]
[1757466182473,0.13201762,111090.0,111080.0,0.02104]
[1757466182671,0.20488088,111090.0,111080.0,0.02104]
[1757466183273,0.20588088,111090.0,111080.0,0.02204]
[1757466183467,0.20588088,111090.0,111080.0,0.03515]
[1757466184972,0.20588088,111090.0,111080.0,0.02204]
[1757466185968,0.45588088,111090.0,111080.0,0.001]
[1757466186172,0.53082573,111090.0,111080.0,0.001]
[1757466186672,0.45588088,111090.0,111080.0,0.001]
[1757466190977,1.27644088,111090.0,111080.0,0.001]
[1757466192580,0.45588088,111090.0,111080.0,0.02204]
[1757466196179,0.04448277,111090.0,111080.0,0.37931081]
[1757466196378,0.001,111090.0,111080.0,0.54427606]
[1757466197988,0.001,111090.0,111080.0,0.45425566]
[1757466198281,0.001,111090.0,111080.0,0.52908344]
[1757466198679,0.001,111090.0,111080.0,0.61910384]
[1757466198882,0.001,111090.0,111080.0,0.69143365]
[1757466202186,0.001,111090.0,111080.0,0.80379239]
[1757466202686,0.001,111090.0,111080.0,0.69143425]
[1757466202985,0.001,111090.0,111080.0,1.51179425]
[1757466204187,0.001,111090.0,111080.0,1.42173325]
[1757466204491,0.001,111090.0,111080.0,0.60141325]
[1757466204693,0.001,111090.0,111080.0,1.51175415]
[1757466207495,0.001,111090.0,111080.0,1.78085415]
[1757466212082,0.001,111090.0,111080.0,1.89321289]
[1757466213284,0.19193133,111120.0,111090.0,0.0139]
[1757466213493,0.39474929,111120.0,111110.0,0.13502874]
[1757466214689,0.50710803,111120.0,111110.0,0.13502874]
[1757466214889,0.50710803,111120.0,111110.0,0.14415523]
[1757466215293,0.50710803,111120.0,111110.0,0.13502874]
[1757466215491,0.52052803,111120.0,111110.0,0.02267]
[1757466215891,0.52152803,111120.0,111110.0,0.13502874]
[1757466216392,0.52052803,111120.0,111110.0,0.13502874]
[1757466216598,0.52052803,111120.0,111110.0,0.13602874]
[1757466216599,0.52352803,111120.0,111110.0,0.13602874]
[1757466217094,0.3181767,111120.0,111110.0,0.13602874]
[1757466217394,0.04518767,111120.0,111110.0,0.14992874]
[1757466218192,0.04518767,111120.0,111110.0,0.23992514]
[1757466218392,0.02385767,111120.0,111110.0,1.43144464]
[1757466219091,1.97687029,111150.0,111110.0,1.54380338]
[1757466219292,0.02133,111150.0,111140.0,0.14892874]
[1757466219492,0.13368874,111150.0,111140.0,0.14892874]
[1757466219799,0.13368874,111150.0,111140.0,0.26128748]
[1757466219997,0.02133,111150.0,111140.0,0.26128748]
[1757466220192,0.04827155,111160.0,111140.0,0.26128748]
[1757466220503,0.19542029,111160.0,111150.0,0.14892874]
[1757466222499,0.14714874,111160.0,111150.0,0.14892874]
[1757466223001,0.13368874,111160.0,111150.0,0.14892874]
[1757466223299,0.13668874,111160.0,111150.0,0.14992874]
[1757466223800,0.13668874,111160.0,111150.0,0.03757]
[1757466223999,0.13668874,111160.0,111150.0,0.14992874]
[1757466224901,0.14955874,111160.0,111150.0,0.03757]
[1757466225203,0.14955874,111160.0,111150.0,0.14992874]
[1757466227602,0.14955874,111160.0,111150.0,0.15906395]
[1757466229203,0.14955874,111160.0,111150.0,0.14992874]
[1757466230805,0.14955874,111160.0,111150.0,0.15916678]
[1757466231005,0.0372,111160.0,111150.0,0.15916678]
[1757466231304,0.04509958,111160.0,111150.0,0.27152552]
[1757466231709,0.04509958,111160.0,111150.0,0.15916678]
[1757466233407,0.02433,111160.0,111150.0,0.15916678]
[1757466233608,0.15745585,111160.0,111150.0,0.15916678]
[1757466233804,0.13668874,111160.0,111150.0,0.15916678]
[1757466234408,0.28268499,111160.0,111150.0,0.001]
[1757466235209,1.46480373,111160.0,111150.0,0.001]
[1757466235902,1.51307528,111160.0,111140.0,0.0001]
[1757466236112,0.25934748,111150.0,111140.0,0.0001]
[1757466236307,0.03463,111140.0,111130.0,0.0002348]
[1757466236503,0.28011499,111140.0,111130.0,0.0001348]
[1757466237702,1.09983499,111140.0,111130.0,0.0001348]
[1757466238106,1.10083499,111140.0,111130.0,0.0031348]
[1757466238412,0.28111499,111140.0,111130.0,0.0031348]
[1757466238614,1.10087499,111140.0,111130.0,0.0031348]
[1757466238805,0.28111499,111140.0,111130.0,0.0031348]
[1757466239310,0.76907499,111140.0,111130.0,0.0031348]
[1757466239512,0.77007499,111140.0,111130.0,0.0011348]
[1757466241912,1.02007499,111140.0,111130.0,0.0011348]
[1757466242113,1.06834654,111140.0,111130.0,0.0011348]
[1757466243213,0.03463,111130.0,111120.0,0.0001]
[1757466243413,0.03463,111130.0,111110.0,0.0001]
[1757466243414,0.03463,111120.0,111110.0,0.0001]
[1757466243610,0.03463,111110.0,111100.0,0.13504874]
[1757466243810,0.14698874,111110.0,111090.0,0.0217517]